fUST/lending_fUST_20240512
["ID","MTS","AMOUNT","RATE_DAILY","PERIOD"]
[326844521,1715509848010,-402.59068146,0.00039359,7]
[326844522,1715509848019,-313.51356517,0.00039438,7]
[326844523,1715509848028,-1000.0,0.000395,2]
[326844524,1715509848037,-5079.9893105,0.000395,10]
[326844525,1715509848046,-166.666666,0.00039602,2]
[326844526,1715509848056,-167.361754,0.00039765,2]
[326844527,1715509848065,-371.72089083,0.00039827,2]
[326844528,1715509848074,-225.43086237,0.00039827,10]
[326844529,1715509848085,-1026.62762571,0.00039827,10]
[326844530,1715509848094,-12359.78124544,0.00039827,5]
[326844531,1715509848103,-1407.88964179,0.00039827,7]
[326844532,1715509848112,-5005.13435615,0.00039827,2]
[326844533,1715509848121,-1305.66973326,0.00039827,2]
[326844534,1715509848130,-35417.39407718,0.00039827,7]
[326844535,1715509848139,-309.42755879,0.00039827,2]
[326844536,1715509848148,-195.63743638,0.00039827,14]
[326844537,1715509848157,-979.0935635,0.00039827,2]
[326844538,1715509848166,-300.68955585,0.00039836,4]
[326844539,1715509848175,-674.97589409,0.00039901,7]
[326844540,1715509848189,-402.59068146,0.00039925,7]
[326844541,1715509848198,-402.59068146,0.0003995,7]
[326844542,1715509848206,-4814.69652524,0.0004,2]
[326844543,1715509848215,-1091.88828652,0.0004,2]
[326844544,1715509848226,-3245.99706305,0.0004,4]
[326844545,1715509848235,-521.53,0.0004,4]
[326844546,1715509848244,-500.0,0.0004,4]
[326844547,1715509848254,-169.30690138,0.0004,2]
[326844548,1715509848265,-11519.90038128,0.0004,7]
[326844549,1715509848276,-464.61107643,0.0004,120]
[326844550,1715509848286,-271.99473039,0.0004,120]
[326844551,1715509848297,-146770.0,0.0004013,2]
[326844552,1715509848305,-153.15121778,0.00040145,30]
[326844553,1715509848314,-674.97589409,0.00040148,30]
[326844554,1715509848324,-200.0,0.00040453,120]
[326844555,1715509848333,-674.97589409,0.00040878,30]
[326844556,1715509848343,-296.15202663,0.00040955,15]
[326844557,1715509848355,-500.0,0.00041096,31]
[326844558,1715509848364,-500.0,0.00041096,31]
[326844559,1715509848373,-500.0,0.00041096,31]
[326844560,1715509848382,-500.0,0.00041096,31]
[326844561,1715509848391,-500.0,0.00041096,31]
[326844562,1715509848401,-500.0,0.00041096,31]
[326844563,1715509848410,-500.0,0.00041096,31]
[326844564,1715509848418,-500.0,0.00041096,31]
[326844565,1715509848427,-500.0,0.00041096,31]
[326844566,1715509848436,-500.0,0.00041096,31]
[326844567,1715509848445,-500.0,0.00041096,31]
[326844568,1715509848455,-500.0,0.00041096,31]
[326844569,1715509848464,-249.70171247,0.00041096,31]
[326844570,1715509848473,-500.0,0.00041096,31]
[326844571,1715509848482,-500.0,0.00041096,31]
[326844572,1715509848492,-500.0,0.00041096,31]
[326844573,1715509848501,-500.0,0.00041096,31]
[326844574,1715509848511,-500.0,0.00041096,31]
[326844575,1715509848520,-674.97589409,0.00041298,30]
[326844576,1715509848530,-153.0,0.00041362,2]
[326844577,1715509848540,-153.0,0.00041362,2]
[326844578,1715509848550,-153.0,0.00041362,2]
[326844579,1715509848559,-153.0,0.00041363,2]
[326844580,1715509848567,-153.0,0.00041363,2]
[326844581,1715509848577,-402.59068146,0.00041365,30]
[326844582,1715509848587,-674.97589409,0.00041404,30]
[326844583,1715509848597,-313.51356517,0.00041421,30]
[326844584,1715509848606,-150.00367065,0.00041436,30]
[326844585,1715509848615,-285.164937,0.00041471,2]
[326844586,1715509848625,-402.59068146,0.00041507,30]
[326844587,1715509848634,-151.0179077,0.00041591,30]
[326844588,1715509848643,-402.59068146,0.00041649,30]
[326844589,1715509848653,-674.97589409,0.00041746,30]
[326844590,1715509848662,-674.97589409,0.00041776,30]
[326844591,1715509848671,-153.0,0.00041911,2]
[326844592,1715509848680,-153.0,0.00041911,2]
[326844593,1715509848690,-153.0,0.00041911,2]
[326844594,1715509848699,-1002.7797294,0.00042,120]
[326844595,1715509848708,-166.0954204,0.00042145,30]
[326844596,1715509848718,-313.51356517,0.0004227,30]
[326844597,1715509848727,-674.97589409,0.00042384,30]
[326844598,1715509848736,-557.0,0.00042399,30]
[326844599,1715509848746,-164.239022,0.00042466,2]
[326844600,1715509848755,-808.76959026,0.000425,30]
[326844601,1715509848764,-160.0,0.00042643,3]
[326844602,1715509848775,-153.15121778,0.00042667,30]
[326844603,1715509848784,-674.97589409,0.00042768,30]
[326844604,1715509848793,-151.0179077,0.00042808,30]
[326844605,1715509848803,-674.97589409,0.00043069,30]
[326844606,1715509848812,-166.0954204,0.00043111,30]
[326844607,1715509848821,-313.51356517,0.00043148,30]
[326844608,1715509848830,-674.97589409,0.00043316,30]
[326844609,1715509848839,-200.0,0.00043336,120]
[326844610,1715509848850,-151.0179077,0.00043415,30]
[326844611,1715509848859,-160.0,0.00043672,4]
[326844612,1715509848868,-1000.0,0.00043835,2]
[326844613,1715509848878,-924.91061441,0.00043835,2]
[326844614,1715509848887,-402.59068146,0.00043979,30]
[326844615,1715509848897,-402.59068146,0.00044187,30]
[326844616,1715509848906,-173.26222542,0.00044204,30]
[326844617,1715509848915,-150.00367065,0.00044439,30]
[326844618,1715509848925,-153.0,0.00044485,2]
[326844619,1715509848934,-153.0,0.00044485,2]
[326844620,1715509848943,-402.59068146,0.00044532,30]
[326844621,1715509848952,-153.15121778,0.00044593,30]
[326844622,1715509848961,-557.0,0.0004463,30]
[326844623,1715509848970,-160.0,0.00044701,5]
[326844624,1715509848980,-151.0,0.00045,120]
[326844625,1715509848989,-313.51356517,0.00045442,30]
[326844626,1715509848998,-153.0,0.00045444,2]
[326844627,1715509849007,-402.59068146,0.00045451,30]
[326844628,1715509849016,-151.0179077,0.00045562,30]
[326844629,1715509849025,-313.51356517,0.00045635,30]
[326844630,1715509849034,-160.0,0.0004573,6]
[326844631,1715509849043,-151.0179077,0.00045869,30]
[326844632,1715509849052,-153.15121778,0.00045962,30]
[326844633,1715509849061,-674.97589409,0.00045977,30]
[326844634,1715509849070,-153.15121778,0.00045991,30]
[326844635,1715509849079,-151.0179077,0.00046014,30]
[326844636,1715509849091,-402.59068146,0.00046133,30]
[326844637,1715509849101,-151.0,0.00046192,120]
[326844638,1715509849110,-337.7596171,0.00046311,2]
[326844639,1715509849119,-313.51356517,0.00046318,30]
[326844640,1715509849128,-402.59068146,0.00046321,30]
[326844641,1715509849137,-750000.0,0.000464,2]
[326844642,1715509849146,-160.0,0.00046759,7]
[326844643,1715509849156,-557.0,0.00046979,30]
[326844644,1715509849165,-313.51356517,0.00047032,30]
[326844645,1715509849175,-151.0179077,0.00047038,30]
[326844646,1715509849188,-313.51356517,0.00047146,30]
[326844647,1715509849198,-313.51356517,0.00047319,30]
[326844648,1715509849207,-674.97589409,0.00047335,30]
[326844649,1715509849216,-151.0,0.0004737,120]
[326844650,1715509849226,-285.164937,0.00047441,2]
[326844651,1715509849236,-674.97589409,0.00047443,30]
[326844652,1715509849245,-160.0,0.00047789,8]
[326844653,1715509849254,-150.00367065,0.00047847,30]
[326844654,1715509849263,-674.97589409,0.00047962,30]
[326844655,1715509849271,-674.97589409,0.00047968,30]
[326844656,1715509849280,-402.59068146,0.00048059,30]
[326844657,1715509849289,-151.0179077,0.00048112,30]
[326844658,1715509849298,-313.51356517,0.00048143,30]
[326844659,1715509849307,-313.51356517,0.00048217,30]
[326844660,1715509849316,-151.0179077,0.00048334,30]
[326844661,1715509849326,-150.00367065,0.00048449,30]
[326844662,1715509849334,-200.0,0.00048452,120]
[326844663,1715509849344,-151.0,0.00048548,120]
[326844664,1715509849354,-151.0179077,0.0004863,30]
[326844665,1715509849363,-160.0,0.00048818,9]
[326844666,1715509849372,-313.51356517,0.00048922,30]
[326844667,1715509849381,-313.51356517,0.00048967,30]
[326844668,1715509849390,-153.15121778,0.0004899,30]
[326844669,1715509849399,-151.0179077,0.00048995,30]
[326844670,1715509849408,-3955.72209754,0.00049,120]
[326844671,1715509849418,-313.51356517,0.00049063,30]
[326844672,1715509849427,-402.59068146,0.00049166,30]
[326844673,1715509849436,-34086.3927723,0.00049315,2]
[326844674,1715509849446,-166.666666,0.0004934,2]
[326844675,1715509849455,-402.59068146,0.00049447,30]
[326844676,1715509849464,-557.0,0.00049452,30]
[326844677,1715509849473,-153.15121778,0.00049502,30]
[326844678,1715509849482,-402.59068146,0.00049575,30]
[326844679,1715509849492,-151.0,0.00049726,120]
[326844680,1715509849502,-674.97589409,0.0004973,30]
[326844681,1715509849511,-150.00367065,0.00049773,30]
[326844682,1715509849520,-402.59068146,0.00049818,30]
[326844683,1715509849530,-164.66079013,0.000499,6]
[326844684,1715509849539,-1839.64181661,0.0005,2]
[326844685,1715509849548,-4500.0,0.0005,7]
[326844686,1715509849557,-1000.0,0.0005,2]
[326844687,1715509849566,-500.0,0.0005,30]
[326844688,1715509849576,-151.0,0.0005,120]
[326844689,1715509849585,-200.52201348,0.0005,120]
[326844690,1715509849718,-151.0179077,0.00050093,60]
[326844691,1715509849728,-158.0282973,0.00050474,60]
[326844692,1715509849737,-153.15121778,0.00050523,60]
[326844693,1715509849747,-313.51356517,0.00050592,60]
[326844694,1715509849757,-262.3351109,0.00050876,5]
[326844695,1715509849766,-151.0179077,0.00050893,60]
[326844696,1715509849775,-151.0,0.00050904,120]
[326844697,1715509849784,-674.97589409,0.00050984,60]
[326844698,1715509849794,-44321.22203836,0.00050999,2]
[326844699,1715509849803,-151.0179077,0.00051207,60]
[326844700,1715509849812,-402.59068146,0.00051221,60]
[326844701,1715509849822,-151.0179077,0.00051236,60]
[326844702,1715509849831,-151.0179077,0.00051263,60]
[326844703,1715509849840,-151.0179077,0.00051303,60]
[326844704,1715509849850,-674.97589409,0.0005135,60]
[326844705,1715509849859,-173.26222543,0.00051422,60]
[326844706,1715509849868,-304.92770829,0.0005144,10]
[326844707,1715509849877,-150.00367065,0.00051614,60]
[326844708,1715509849887,-674.97589409,0.0005167,60]
[326844709,1715509849896,-313.51356517,0.00051683,60]
[326844710,1715509849906,-190.15718646,0.000518,120]
[326844711,1715509849915,-5000.00000099,0.000519,30]
[326844712,1715509849925,-1000.0,0.00052054,120]
[326844713,1715509849934,-1000.0,0.00052054,120]
[326844714,1715509849943,-1076.05214852,0.00052054,120]
[326844715,1715509849952,-557.0,0.00052054,30]
[326844716,1715509849962,-151.0,0.00052082,120]
[326844717,1715509849971,-313.51356517,0.00052201,60]
[326844718,1715509849981,-151.0,0.00052421,10]
[326844719,1715509849992,-674.97589409,0.00052494,60]
[326844720,1715509850002,-153.15121778,0.00052575,60]
[326844721,1715509850011,-158.02829731,0.00052613,60]
[326844722,1715509850020,-191.12469492,0.00053,120]
[326844723,1715509850029,-151.0,0.0005326,120]
[326844724,1715509850040,-402.59068146,0.00053391,60]
[326844725,1715509850049,-285.164937,0.0005341,2]
[326844726,1715509850058,-166.0954204,0.00053494,60]
[326844727,1715509850068,-1000.0,0.000535,2]
[326844728,1715509850078,-151.01790788,0.00053553,60]
[326844729,1715509850087,-153.15121787,0.00053748,60]
[326844730,1715509850096,-160.0,0.00053876,3]
[326844731,1715509850107,-160.0,0.00053876,5]
[326844732,1715509850116,-150.00367065,0.00054017,60]
[326844733,1715509850125,-402.59068146,0.00054034,60]
[326844734,1715509850135,-281.0,0.000541,33]
[326844735,1715509850144,-313.51356517,0.00054279,60]
[326844736,1715509850153,-150.00367065,0.0005432,60]
[326844737,1715509850162,-402.59068146,0.00054334,60]
[326844738,1715509850171,-151.0,0.00054438,120]
[326844739,1715509850185,-402.5906817,0.00054597,60]
[326844740,1715509850194,-313.51356525,0.0005465,60]
[326844741,1715509850203,-674.97589415,0.0005474,60]
[326844742,1715509850212,-150.00367065,0.00054779,60]
[326844743,1715509850223,-557.0,0.00054794,30]
[326844744,1715509850232,-500.0,0.00054794,120]
[326844745,1715509850242,-500.0,0.00054794,120]
[326844746,1715509850251,-500.0,0.00054794,120]
[326844747,1715509850260,-502.43412474,0.00054794,120]
[326844748,1715509850270,-500.9356392,0.00054794,120]
[326844749,1715509850280,-500.92359023,0.00054794,120]
[326844750,1715509850289,-500.0,0.00054794,120]
[326844751,1715509850298,-500.0,0.00054794,120]
[326844752,1715509850307,-152.80143447,0.00054794,120]
[326844753,1715509850315,-500.0,0.00054794,120]
[326844754,1715509850325,-639.85372902,0.00054794,120]
[326844755,1715509850334,-500.0,0.00054794,120]
[326844756,1715509850343,-500.10779741,0.00054794,120]
[326844757,1715509850353,-500.0,0.00054794,120]
[326844758,1715509850362,-333.70153902,0.00054794,120]
[326844759,1715509850370,-500.0,0.00054794,120]
[326844760,1715509850380,-792.18,0.00054794,120]
[326844761,1715509850389,-500.0,0.00054794,120]
[326844762,1715509850398,-700.0,0.00054794,120]
[326844763,1715509850407,-420.65350848,0.00054794,120]
[326844764,1715509850415,-500.0,0.00054794,120]
[326844765,1715509850425,-500.0,0.00054794,120]
[326844766,1715509850434,-500.0,0.00054794,120]
[326844767,1715509850443,-500.0,0.00054794,120]
[326844768,1715509850451,-500.0,0.00054794,120]
[326844769,1715509850461,-300.0,0.00054794,2]
[326844770,1715509850472,-500.0,0.00054794,120]
[326844771,1715509850481,-500.0,0.00054794,7]
[326844772,1715509850490,-500.0,0.00054794,120]
[326844773,1715509850499,-500.0,0.00054794,120]
[326844774,1715509850508,-500.0,0.00054794,120]
[326844775,1715509850517,-500.0,0.00054794,120]
[326844776,1715509850527,-249.1087419,0.00054794,120]
[326844777,1715509850535,-500.0,0.00054794,120]
[326844778,1715509850544,-500.0,0.00054794,7]
[326844779,1715509850553,-500.0,0.00054794,120]
[326844780,1715509850562,-282.71576035,0.00054794,120]
[326844781,1715509850572,-500.0,0.00054794,120]
[326844782,1715509850581,-509.0559518,0.00054794,120]
[326844783,1715509850590,-504.90259337,0.00054794,120]
[326844784,1715509850599,-500.0,0.00054794,120]
[326844785,1715509850609,-500.0,0.00054794,120]
[326844786,1715509850618,-500.0,0.00054794,120]
[326844787,1715509850627,-500.0,0.00054794,120]
[326844788,1715509850636,-500.0,0.00054794,120]
[326844789,1715509850645,-500.0,0.00054794,120]
[326844790,1715509850655,-500.73118514,0.00054794,120]
[326844791,1715509850664,-502.05618222,0.00054794,120]
[326844792,1715509850673,-500.0,0.00054794,120]
[326844793,1715509850683,-500.0,0.00054794,120]
[326844794,1715509850692,-500.0,0.00054794,120]
[326844795,1715509850701,-687.88,0.00054794,120]
[326844796,1715509850710,-1184.42,0.00054794,120]
[326844797,1715509850719,-622.05,0.00054794,120]
[326844798,1715509850728,-500.0,0.00054794,120]
[326844799,1715509850737,-500.0,0.00054794,120]
[326844800,1715509850747,-500.0,0.00054794,120]
[326844801,1715509850756,-500.0,0.00054794,120]
[326844802,1715509850765,-500.0,0.00054794,120]
[326844803,1715509850774,-248.77211055,0.00054794,120]
[326844804,1715509850784,-388.92625014,0.00054794,120]
[326844805,1715509850793,-501.90101056,0.00054794,120]
[326844806,1715509850803,-445.89927194,0.00054794,120]
[326844807,1715509850812,-500.0,0.00054794,120]
[326844808,1715509850821,-530.05900892,0.00054794,120]
[326844809,1715509850830,-500.0,0.00054794,120]
[326844810,1715509850839,-504.0674723,0.00054794,120]
[326844811,1715509850848,-1188.88,0.00054794,120]
[326844812,1715509850857,-500.0,0.00054794,120]
[326844813,1715509850866,-500.0,0.00054794,120]
[326844814,1715509850875,-500.0,0.00054794,120]
[326844815,1715509850886,-664.65,0.00054794,120]
[326844816,1715509850895,-496.27173043,0.00054794,120]
[326844817,1715509850904,-500.0,0.00054794,120]
[326844818,1715509850913,-500.0,0.00054794,120]
[326844819,1715509850922,-500.0,0.00054794,2]
[326844820,1715509850931,-601.05483183,0.00054794,120]
[326844821,1715509850940,-500.0,0.00054794,120]
[326844822,1715509850949,-500.0,0.00054794,120]
[326844823,1715509850959,-638.0680169,0.00054794,120]
[326844824,1715509850968,-500.0,0.00054794,120]
[326844825,1715509850977,-500.0,0.00054794,120]
[326844826,1715509850986,-706.45,0.00054794,120]
[326844827,1715509850995,-589.94,0.00054794,120]
[326844828,1715509851004,-500.0,0.00054794,120]
[326844829,1715509851013,-351.90330616,0.00054794,120]
[326844830,1715509851022,-500.0,0.00054794,120]
[326844831,1715509851031,-500.0,0.00054794,120]
[326844832,1715509851041,-170.28192102,0.00054794,120]
[326844833,1715509851050,-500.0,0.00054794,120]
[326844834,1715509851059,-500.0,0.00054794,120]
[326844835,1715509851068,-500.0,0.00054794,120]
[326844836,1715509851077,-500.0,0.00054794,120]
[326844837,1715509851086,-500.0,0.00054794,120]
[326844838,1715509851095,-500.0,0.00054794,20]
[326844839,1715509851106,-344.10075954,0.00054794,120]
[326844840,1715509851116,-507.02131976,0.00054794,120]
[326844841,1715509851125,-506.25987411,0.00054794,120]
[326844842,1715509851134,-718.87,0.00054794,120]
[326844843,1715509851143,-500.0,0.00054794,120]
[326844844,1715509851152,-500.0,0.00054794,120]
[326844845,1715509851161,-668.81,0.00054794,120]
[326844846,1715509851170,-500.0,0.00054794,120]
[326844847,1715509851179,-1198.11,0.00054794,120]
[326844848,1715509851193,-266.57838612,0.00054794,120]
[326844849,1715509851202,-500.0,0.00054794,120]
[326844850,1715509851211,-500.0,0.00054794,120]
[326844851,1715509851220,-500.0,0.00054794,120]
[326844852,1715509851230,-859.74,0.00054794,120]
[326844853,1715509851239,-500.0,0.00054794,120]
[326844854,1715509851248,-1019.78,0.00054794,120]
[326844855,1715509851257,-500.0,0.00054794,120]
[326844856,1715509851266,-500.0,0.00054794,120]
[326844857,1715509851275,-500.0,0.00054794,120]
[326844858,1715509851284,-500.0,0.00054794,120]
[326844859,1715509851293,-507.16725114,0.00054794,120]
[326844860,1715509851303,-500.0,0.00054794,120]
[326844861,1715509851312,-500.0,0.00054794,120]
[326844862,1715509851322,-500.0,0.00054794,120]
[326844863,1715509851331,-500.0,0.00054794,120]
[326844864,1715509851340,-500.0,0.00054794,120]
[326844865,1715509851349,-517.21851212,0.00054794,7]
[326844866,1715509851359,-1222.61,0.00054794,120]
[326844867,1715509851368,-501.15536417,0.00054794,120]
[326844868,1715509851377,-500.0,0.00054794,30]
[326844869,1715509851385,-500.0,0.00054794,120]
[326844870,1715509851395,-500.0,0.00054794,120]
[326844871,1715509851404,-1076.09,0.00054794,4]
[326844872,1715509851413,-500.0,0.00054794,120]
[326844873,1715509851422,-500.0,0.00054794,120]
[326844874,1715509851431,-249.76002849,0.00054794,120]
[326844875,1715509851439,-500.0,0.00054794,120]
[326844876,1715509851449,-500.0,0.00054794,120]
[326844877,1715509851458,-296.57495604,0.00054794,120]
[326844878,1715509851467,-777.18,0.00054794,120]
[326844879,1715509851476,-500.0,0.00054794,120]
[326844880,1715509851485,-186.52596622,0.00054794,120]
[326844881,1715509851494,-500.0,0.00054794,120]
[326844882,1715509851503,-623.85,0.00054794,120]
[326844883,1715509851512,-502.13133616,0.00054794,120]
[326844884,1715509851521,-204.97329833,0.00054794,120]
[326844885,1715509851530,-1000.0,0.00054794,120]
[326844886,1715509851539,-500.0,0.00054794,120]
[326844887,1715509851547,-879.42,0.00054794,120]
[326844888,1715509851556,-500.0,0.00054794,120]
[326844889,1715509851565,-500.0,0.00054794,120]
[326844890,1715509851574,-300.0,0.00054794,7]
[326844891,1715509851583,-247.5703797,0.00054794,120]
[326844892,1715509851592,-242.92763997,0.00054794,120]
[326844893,1715509851602,-241.95770413,0.00054794,120]
[326844894,1715509851610,-500.0,0.00054794,120]
[326844895,1715509851619,-500.0,0.00054794,120]
[326844896,1715509851628,-500.0,0.00054794,120]
[326844897,1715509851637,-500.0,0.00054794,120]
[326844898,1715509851646,-500.0,0.00054794,120]
[326844899,1715509851655,-593.84140694,0.00054794,120]
[326844900,1715509851664,-1022.56,0.00054794,120]
[326844901,1715509851673,-500.0,0.00054794,120]
[326844902,1715509851682,-500.0,0.00054794,120]
[326844903,1715509851691,-500.0,0.00054794,120]
[326844904,1715509851700,-500.0,0.00054794,120]
[326844905,1715509851709,-1415.7,0.00054794,120]
[326844906,1715509851718,-500.0,0.00054794,120]
[326844907,1715509851727,-540.93972771,0.00054794,120]
[326844908,1715509851737,-676.96,0.00054794,120]
[326844909,1715509851746,-702.94,0.00054794,120]
[326844910,1715509851755,-1146.59,0.00054794,120]
[326844911,1715509851764,-513.04487859,0.00054794,120]
[326844912,1715509851773,-846.45,0.00054794,120]
[326844913,1715509851783,-500.0,0.00054794,120]
[326844914,1715509851792,-512.56666847,0.00054794,120]
[326844915,1715509851801,-500.0,0.00054794,120]
[326844916,1715509851810,-500.0,0.00054794,120]
[326844917,1715509851819,-1000.0,0.00054794,120]
[326844918,1715509851828,-502.1845834,0.00054794,120]
[326844919,1715509851837,-506.08,0.00054794,120]
[326844920,1715509851847,-694.21,0.00054794,120]
[326844921,1715509851857,-500.0,0.00054794,120]
[326844922,1715509851866,-500.0,0.00054794,120]
[326844923,1715509851875,-500.0,0.00054794,120]
[326844924,1715509851884,-534.57,0.00054794,120]
[326844925,1715509851894,-628.13,0.00054794,120]
[326844926,1715509851903,-500.0,0.00054794,120]
[326844927,1715509851912,-500.0,0.00054794,120]
[326844928,1715509851921,-500.0,0.00054794,120]
[326844929,1715509851930,-500.0,0.00054794,120]
[326844930,1715509851939,-500.0,0.00054794,120]
[326844931,1715509851948,-500.0,0.00054794,120]
[326844932,1715509851957,-563.98,0.00054794,120]
[326844933,1715509851966,-500.0,0.00054794,120]
[326844934,1715509851975,-465.44519791,0.00054794,120]
[326844935,1715509851985,-500.0,0.00054794,120]
[326844936,1715509851995,-500.0,0.00054794,120]
[326844937,1715509852004,-543.88,0.00054794,120]
[326844938,1715509852013,-543.88,0.00054794,120]
[326844939,1715509852022,-543.88,0.00054794,120]
[326844940,1715509852031,-543.88,0.00054794,120]
[326844941,1715509852040,-543.88,0.00054794,120]
[326844942,1715509852049,-543.88,0.00054794,120]
[326844943,1715509852058,-500.0,0.00054794,120]
[326844944,1715509852067,-543.88,0.00054794,120]
[326844945,1715509852076,-543.88,0.00054794,120]
[326844946,1715509852085,-543.88,0.00054794,120]
[326844947,1715509852094,-543.88,0.00054794,120]
[326844948,1715509852105,-543.88,0.00054794,120]
[326844949,1715509852114,-500.0,0.00054794,120]
[326844950,1715509852123,-427.86212141,0.00054794,120]
[326844951,1715509852132,-543.88,0.00054794,120]
[326844952,1715509852141,-500.0,0.00054794,120]
[326844953,1715509852150,-543.88,0.00054794,120]
[326844954,1715509852278,-543.88,0.00054794,120]
[326844955,1715509852288,-543.88,0.00054794,120]
[326844956,1715509852297,-500.0,0.00054794,120]
[326844957,1715509852306,-543.88,0.00054794,120]
[326844958,1715509852315,-543.88,0.00054794,120]
[326844959,1715509852324,-543.88,0.00054794,120]
[326844960,1715509852332,-543.1668895,0.00054794,120]
[326844961,1715509852341,-543.88,0.00054794,120]
[326844962,1715509852351,-543.88,0.00054794,120]
[326844963,1715509852360,-432.34310837,0.00054794,120]
[326844964,1715509852369,-543.88,0.00054794,120]
[326844965,1715509852378,-543.88,0.00054794,120]
[326844966,1715509852387,-543.88,0.00054794,120]
[326844967,1715509852396,-543.92995274,0.00054794,120]
[326844968,1715509852405,-1333.29,0.00054794,120]
[326844969,1715509852414,-500.0,0.00054794,7]
[326844970,1715509852423,-500.0,0.00054794,120]
[326844971,1715509852432,-2080.97,0.00054794,120]
[326844972,1715509852440,-500.0,0.00054794,120]
[326844973,1715509852450,-500.0,0.00054794,120]
[326844974,1715509852458,-500.0,0.00054794,120]
[326844975,1715509852467,-500.0,0.00054794,120]
[326844976,1715509852476,-697.5,0.00054794,120]
[326844977,1715509852486,-500.0,0.00054794,120]
[326844978,1715509852495,-205.07508129,0.00054794,120]
[326844979,1715509852503,-500.0,0.00054794,120]
[326844980,1715509852512,-1146.84,0.00054794,120]
[326844981,1715509852522,-500.0,0.00054794,120]
[326844982,1715509852531,-500.0,0.00054794,120]
[326844983,1715509852540,-151.0,0.00054794,120]
[326844984,1715509852549,-500.0,0.00054794,120]
[326844985,1715509852558,-500.0,0.00054794,120]
[326844986,1715509852567,-500.0,0.00054794,120]
[326844987,1715509852576,-500.0,0.00054794,120]
[326844988,1715509852585,-500.0,0.00054794,120]
[326844989,1715509852594,-500.0,0.00054794,120]
[326844990,1715509852604,-1062.31,0.00054794,120]
[326844991,1715509852612,-504.41576019,0.00054794,120]
[326844992,1715509852622,-500.0,0.00054794,120]
[326844993,1715509852632,-500.0,0.00054794,120]
[326844994,1715509852641,-887.25,0.00054794,120]
[326844995,1715509852650,-500.0,0.00054794,120]
[326844996,1715509852659,-500.0,0.00054794,120]
[326844997,1715509852668,-500.0,0.00054794,120]
[326844998,1715509852677,-884.99,0.00054794,120]
[326844999,1715509852686,-1945.84,0.00054794,120]
[326845000,1715509852696,-1101.29,0.00054794,120]
[326845001,1715509852705,-683.11,0.00054794,120]
[326845002,1715509852714,-500.0,0.00054794,120]
[326845003,1715509852723,-554.52739146,0.00054794,120]
[326845004,1715509852732,-500.0,0.00054794,120]
[326845005,1715509852741,-500.0,0.00054794,120]
[326845006,1715509852750,-500.0,0.00054794,120]
[326845007,1715509852759,-500.0,0.00054794,120]
[326845008,1715509852768,-500.0,0.00054794,120]
[326845009,1715509852777,-500.0,0.00054794,120]
[326845010,1715509852786,-634.75,0.00054794,120]
[326845011,1715509852796,-500.0,0.00054794,120]
[326845012,1715509852804,-500.0,0.00054794,120]
[326845013,1715509852813,-1202.07,0.00054794,120]
[326845014,1715509852823,-500.0,0.00054794,120]
[326845015,1715509852832,-500.0,0.00054794,2]
[326845016,1715509852841,-500.0,0.00054794,120]
[326845017,1715509852850,-500.0,0.00054794,120]
[326845018,1715509852860,-500.0,0.00054794,120]
[326845019,1715509852870,-500.0,0.00054794,120]
[326845020,1715509852879,-500.0,0.00054794,120]